[Event "Turkish Cup 2022"]
[Site "Sakarya"]
[Date "2022.03.28"]
[Round "6.1"]
[White "Kirilmaz, Emre"]
[Black "Samani, Yamac"]
[Result "1/2-1/2"]
[ECO "A48"]
[WhiteElo "2229"]
[BlackElo "2257"]
[Annotator "NA"]
[PlyCount "34"]
[EventDate "2022.03.25"]
[EventType "swiss"]
[EventCountry "TUR"]
[SourceTitle "playchess.com"]
[Source "ChessBase"]
[SourceQuality "1"]
[TimeControl "5400+30"]

1. d4 {[%emt 0:12:00]} Nf6 {[%emt 0:01:00]} 2. c3 {[%emt 0:00:00]} g6 {[%emt 0:00:30]} 3. Bg5 {[%emt 0:06:00]} Bg7 {[%emt 0:01:30]} 4. Nd2 {[%emt 0:02:30]} O-O {[%emt 0:00:30]} 5. Ngf3 {[%emt 0:01:30]} d6 {[%emt 0:00:30]} 6. e4 {[%emt 0:00:30]} c5 {[%emt 0:00:30]} 7. dxc5 {[%emt 0:01:30]} dxc5 {[%emt 0:00:30]} 8. Bc4 {[%emt 0:00:30]} Nc6 {[%emt 0:00:30]} 9. Qe2 {[%emt 0:00:30]} Na5 {[%emt 0:05:30]} 10. Bd3 {[%emt 0:01:30]} Qc7 {[%emt 0:04:30]} 11. O-O {[%emt 0:11:30]} h6 {[%emt 0:11:30]} 12. Bh4 {[%emt 0:06:30]} Nh5 {[%emt 0:00:30]} 13. Qe3 {[%emt 0:01:30]} Nf4 {[%emt 0:05:30]} 14. Bxe7 {[%emt 0:18:30]} Nh3+ {[%emt 0:01:30]} 15. gxh3 {[%emt 0:04:30]} Qxe7 {[%emt 0:00:30]} 16. e5 {[%emt 0:11:24]} Nc6 {[%emt 0:00:30]} 17. Rfe1 {[%emt 0:00:30]} Kh8 {[%emt 0:00:30]} 1/2-1/2

[Event "Turkish Cup 2022"]
[Site "Sakarya"]
[Date "2022.03.28"]
[Round "6.2"]
[White "Guven, Oguz Kagan"]
[Black "Koksal, Ege"]
[Result "1/2-1/2"]
[ECO "D11"]
[WhiteElo "2157"]
[BlackElo "2343"]
[Annotator "NA"]
[PlyCount "83"]
[EventDate "2022.03.25"]
[EventType "swiss"]
[EventCountry "TUR"]
[SourceTitle "playchess.com"]
[Source "ChessBase"]
[SourceQuality "1"]
[TimeControl "5400+30"]

1. Nf3 {[%emt 0:04:00]} d5 {[%emt 0:02:00]} 2. g3 {[%emt 0:00:30]} c6 {[%emt 0:00:30]} 3. Bg2 {[%emt 0:00:00]} Bg4 {[%emt 0:00:30]} 4. O-O {[%emt 0:01:00]} Nd7 {[%emt 0:01:30]} 5. d4 {[%emt 0:00:00]} Ngf6 {[%emt 0:00:30]} 6. c4 {[%emt 0:00:00]} e6 {[%emt 0:00:30]} 7. h3 {[%emt 0:00:30]} Bh5 {[%emt 0:02:30]} 8. cxd5 {[%emt 0:00:00]} cxd5 {[%emt 0:00:30]} 9. Bf4 {[%emt 0:10:00]} Be7 {[%emt 0:00:30]} 10. Qb3 {[%emt 0:00:30]} Qb6 {[%emt 0:05:30]} 11. Qxb6 {[%emt 0:03:30]} Nxb6 {[%emt 0:06:30]} 12. Nc3 {[%emt 0:02:30]} Bxf3 {[%emt 0:00:30]} 13. Bxf3 {[%emt 0:00:30]} Kd7 {[%emt 0:00:30]} 14. e4 {[%emt 0:02:30]} dxe4 {[%emt 0:01:30]} 15. Nxe4 {[%emt 0:00:30]} Nxe4 {[%emt 0:00:30]} 16. Bxe4 {[%emt 0:00:30]} Nd5 {[%emt 0:00:00]} 17. Bxd5 {[%emt 0:18:30]} exd5 {[%emt 0:00:00]} 18. g4 {[%emt 0:10:30]} h5 {[%emt 0:04:30]} 19. Rac1 {[%emt 0:00:30]} Bd6 {[%emt 0:01:30]} 20. Bxd6 {[%emt 0:00:30]} Kxd6 {[%emt 0:00:00]} 21. f3 {[%emt 0:14:30]} Rac8 {[%emt 0:04:00]} 22. Rfe1 {[%emt 0:05:30]} hxg4 {[%emt 0:02:30]} 23. hxg4 {[%emt 0:00:30]} Rc4 {[%emt 0:01:30]} 24. Rxc4 {[%emt 0:01:30]} dxc4 {[%emt 0:00:30]} 25. Re5 {[%emt 0:00:30]} Rc8 {[%emt 0:01:30]} 26. Ra5 {[%emt 0:01:30]} a6 {[%emt 0:00:30]} 27. Kf2 {[%emt 0:00:30]} Rc6 {[%emt 0:02:30]} 28. Ke3 {[%emt 0:02:30]} Rb6 {[%emt 0:00:30]} 29. Ke4 {[%emt 0:01:30]} Rxb2 {[%emt 0:03:30]} 30. Rd5+ {[%emt 0:00:43]} Ke7 {[%emt 0:18:30]} 31. Re5+ {[%emt 0:01:45]} Kf8 {[%emt 0:01:30]} 32. Rc5 {[%emt 0:00:11]} b5 {[%emt 0:00:30]} 33. a4 {[%emt 0:00:19]} Ke7 {[%emt 0:01:30]} 34. d5 {[%emt 0:03:11]} Kd7 {[%emt 0:11:30]} 35. Rc6 {[%emt 0:02:54]} Ra2 {[%emt 0:01:30]} 36. axb5 {[%emt 0:00:42]} axb5 {[%emt 0:00:30]} 37. Rb6 {[%emt 0:00:08]} Rb2 {[%emt 0:20:05]} 38. Kd4 {[%emt 0:01:20]} Rd2+ {[%emt 0:00:30]} 39. Ke4 {[%emt 0:00:00]} Rb2 {[%emt 0:01:13]} 40. Kd4 {[%emt 0:00:00]} Rd2+ {[%emt 0:00:33]} 41. Ke4 {[%emt 0:00:33]} Rb2 {[%emt 0:00:30]} 42. Kd4 {[%emt 0:00:06]} 1/2-1/2

[Event "Turkish Cup 2022"]
[Site "Sakarya"]
[Date "2022.03.28"]
[Round "6.3"]
[White "Sevgi, Volkan"]
[Black "Gulden, Egemen"]
[Result "1-0"]
[ECO "C25"]
[WhiteElo "2344"]
[BlackElo "2094"]
[Annotator "NA"]
[PlyCount "67"]
[EventDate "2022.03.25"]
[EventType "swiss"]
[EventCountry "TUR"]
[SourceTitle "playchess.com"]
[Source "ChessBase"]
[SourceQuality "1"]
[TimeControl "5400+30"]

1. e4 {[%emt 0:01:00]} d6 {[%emt 0:01:00]} 2. Nc3 {[%emt 0:00:30]} e5 {[%emt 0:02:30]} 3. g3 {[%emt 0:03:30]} Nd7 {[%emt 0:08:30]} 4. Bg2 {[%emt 0:00:30]} Ngf6 {[%emt 0:00:00]} 5. Nge2 {[%emt 0:00:00]} c6 {[%emt 0:01:00]} 6. a4 {[%emt 0:00:00]} a5 {[%emt 0:00:00]} 7. O-O {[%emt 0:01:30]} Be7 {[%emt 0:01:00]} 8. d4 {[%emt 0:00:30]} Qc7 {[%emt 0:02:30]} 9. h3 {[%emt 0:00:30]} Nb6 {[%emt 0:05:30]} 10. f4 {[%emt 0:00:30]} Nfd7 {[%emt 0:01:30]} 11. b3 {[%emt 0:03:30]} O-O {[%emt 0:05:30]} 12. Be3 {[%emt 0:00:30]} f6 {[%emt 0:05:30]} 13. g4 {[%emt 0:02:30]} Re8 {[%emt 0:05:30]} 14. Qe1 {[%emt 0:03:30]} Nf8 {[%emt 0:02:30]} 15. Qf2 {[%emt 0:01:30]} exf4 {[%emt 0:07:30]} 16. Nxf4 {[%emt 0:01:30]} Ng6 {[%emt 0:02:30]} 17. d5 {[%emt 0:09:30]} Nd7 {[%emt 0:01:30]} 18. Ne6 {[%emt 0:00:30]} Qb8 {[%emt 0:00:30]} 19. g5 {[%emt 0:00:30]} Nde5 {[%emt 0:00:30]} 20. Nxg7 {[%emt 0:00:00]} Kxg7 {[%emt 0:05:30]} 21. gxf6+ {[%emt 0:00:00]} Bxf6 {[%emt 0:00:30]} 22. Qxf6+ {[%emt 0:00:30]} Kg8 {[%emt 0:00:00]} 23. Bh6 {[%emt 0:06:30]} Qc7 {[%emt 0:02:00]} 24. Rad1 {[%emt 0:00:30]} Ra7 {[%emt 0:05:30]} 25. dxc6 {[%emt 0:02:30]} bxc6 {[%emt 0:00:00]} 26. Rxd6 {[%emt 0:00:30]} Qb6+ {[%emt 0:02:00]} 27. Kh1 {[%emt 0:05:30]} Rf7 {[%emt 0:01:30]} 28. Nd5 {[%emt 0:00:00]} Qc5 {[%emt 0:03:30]} 29. Rd8 {[%emt 0:00:00]} Rxf6 {[%emt 0:17:37]} 30. Nxf6+ {[%emt 0:00:30]} Kf7 {[%emt 0:00:30]} 31. Nxe8+ {[%emt 0:00:30]} Nf3 {[%emt 0:00:05]} 32. Rxf3+ {[%emt 0:02:30]} Ke7 {[%emt 0:00:08]} 33. Rxc8 {[%emt 0:01:30]} Nh4 {[%emt 0:11:19]} 34. Bf8+ {[%emt 0:00:00]} 1-0

[Event "Turkish Cup 2022"]
[Site "Sakarya"]
[Date "2022.03.28"]
[Round "6.4"]
[White "Ozsakallioglu, Okan"]
[Black "Gulbeyaz, Emir"]
[Result "1-0"]
[ECO "B90"]
[WhiteElo "2270"]
[BlackElo "2218"]
[Annotator "NA"]
[PlyCount "39"]
[EventDate "2022.03.25"]
[EventType "swiss"]
[EventCountry "TUR"]
[SourceTitle "playchess.com"]
[Source "ChessBase"]
[SourceQuality "1"]
[TimeControl "5400+30"]

1. e4 {[%emt 0:09:00]} c5 {[%emt 0:01:00]} 2. Nf3 {[%emt 0:00:30]} d6 {[%emt 0:00:30]} 3. d4 {[%emt 0:00:30]} cxd4 {[%emt 0:00:30]} 4. Nxd4 {[%emt 0:00:30]} Nf6 {[%emt 0:00:30]} 5. Nc3 {[%emt 0:00:00]} a6 {[%emt 0:00:00]} 6. h3 {[%emt 0:00:00]} e5 {[%emt 0:00:00]} 7. Nde2 {[%emt 0:00:00]} h5 {[%emt 0:02:30]} 8. g3 {[%emt 0:01:00]} Be6 {[%emt 0:01:30]} 9. Bg2 {[%emt 0:01:30]} Nbd7 {[%emt 0:01:30]} 10. a4 {[%emt 0:04:30]} Rc8 {[%emt 0:00:30]} 11. Be3 {[%emt 0:02:30]} Be7 {[%emt 0:04:30]} 12. O-O {[%emt 0:05:30]} O-O {[%emt 0:00:30]} 13. a5 {[%emt 0:10:30]} h4 {[%emt 0:05:30]} 14. gxh4 {[%emt 0:08:30]} Nb8 {[%emt 0:03:30]} 15. Ng3 {[%emt 0:03:30]} Nc6 {[%emt 0:01:30]} 16. Nd5 {[%emt 0:02:30]} Bxd5 {[%emt 0:05:30]} 17. exd5 {[%emt 0:00:30]} Nxa5 {[%emt 0:00:30]} 18. b3 {[%emt 0:00:00]} b6 {[%emt 0:01:30]} 19. Nf5 {[%emt 0:06:00]} Ne8 {[%emt 0:00:30]} 20. Bxb6 {[%emt 0:00:30]} 1-0

[Event "Turkish Cup 2022"]
[Site "Sakarya"]
[Date "2022.03.28"]
[Round "6.5"]
[White "Yaran, Siar"]
[Black "Temizer, Umut"]
[Result "1/2-1/2"]
[ECO "D31"]
[WhiteElo "2272"]
[BlackElo "1972"]
[Annotator "NA"]
[PlyCount "74"]
[EventDate "2022.03.25"]
[EventType "swiss"]
[EventCountry "TUR"]
[SourceTitle "playchess.com"]
[Source "ChessBase"]
[SourceQuality "1"]
[TimeControl "5400+30"]

1. c4 {[%emt 0:02:00]} e6 {[%emt 0:01:00]} 2. Nc3 {[%emt 0:01:30]} d5 {[%emt 0:01:30]} 3. d4 {[%emt 0:00:30]} a6 {[%emt 0:00:30]} 4. cxd5 {[%emt 0:02:30]} exd5 {[%emt 0:00:30]} 5. Bf4 {[%emt 0:00:30]} c6 {[%emt 0:01:30]} 6. e3 {[%emt 0:00:30]} Bd6 {[%emt 0:00:30]} 7. Bg3 {[%emt 0:06:30]} Ne7 {[%emt 0:03:30]} 8. Bd3 {[%emt 0:00:30]} Bf5 {[%emt 0:03:30]} 9. Nge2 {[%emt 0:00:00]} O-O {[%emt 0:00:30]} 10. O-O {[%emt 0:00:00]} Bxg3 {[%emt 0:03:30]} 11. Nxg3 {[%emt 0:01:30]} Bxd3 {[%emt 0:01:30]} 12. Qxd3 {[%emt 0:00:30]} Nd7 {[%emt 0:01:30]} 13. Rad1 {[%emt 0:07:30]} Qb6 {[%emt 0:15:30]} 14. Rfe1 {[%emt 0:18:30]} Rfe8 {[%emt 0:26:30]} 15. e4 {[%emt 0:14:30]} dxe4 {[%emt 0:00:30]} 16. Ncxe4 {[%emt 0:00:00]} Qc7 {[%emt 0:01:30]} 17. Qf3 {[%emt 0:07:00]} Nf8 {[%emt 0:08:30]} 18. h4 {[%emt 0:16:12]} Ne6 {[%emt 0:09:26]} 19. Nh5 {[%emt 0:06:14]} Nd5 {[%emt 0:01:19]} 20. Qg4 {[%emt 0:01:20]} Kh8 {[%emt 0:05:55]} 21. Nd6 {[%emt 0:01:34]} Qxd6 {[%emt 0:01:14]} 22. Rxe6 {[%emt 0:00:30]} Qf8 {[%emt 0:00:00]} 23. Re5 {[%emt 0:00:37]} f6 {[%emt 0:01:38]} 24. Ree1 {[%emt 0:00:02]} Qf7 {[%emt 0:00:27]} 25. Ng3 {[%emt 0:00:47]} Rxe1+ {[%emt 0:02:29]} 26. Rxe1 {[%emt 0:00:30]} Re8 {[%emt 0:00:00]} 27. Rxe8+ {[%emt 0:00:29]} Qxe8 {[%emt 0:00:00]} 28. h5 {[%emt 0:00:27]} g6 {[%emt 0:01:50]} 29. hxg6 {[%emt 0:02:25]} hxg6 {[%emt 0:00:06]} 30. Ne4 {[%emt 0:00:23]} Kh7 {[%emt 0:03:03]} 31. Nd6 {[%emt 0:03:28]} Qe1+ {[%emt 0:00:53]} 32. Kh2 {[%emt 0:00:05]} Qe7 {[%emt 0:00:23]} 33. Qg3 {[%emt 0:00:53]} b5 {[%emt 0:02:31]} 34. Qh4+ {[%emt 0:03:32]} Kg7 {[%emt 0:00:14]} 35. Qg3 {[%emt 0:00:17]} Kh7 {[%emt 0:00:13]} 36. Qh4+ {[%emt 0:00:57]} Kg7 {[%emt 0:00:07]} 37. Qg3 {[%emt 0:00:24]} Kf8 {[%emt 0:03:37]} 1/2-1/2

[Event "Turkish Cup 2022"]
[Site "Sakarya"]
[Date "2022.03.28"]
[Round "6.6"]
[White "Yurtseven, Melih"]
[Black "Baltaci, Ismail Tarik"]
[Result "1-0"]
[ECO "A49"]
[WhiteElo "2388"]
[BlackElo "2033"]
[Annotator "NA"]
[PlyCount "81"]
[EventDate "2022.03.25"]
[EventType "swiss"]
[EventCountry "TUR"]
[SourceTitle "playchess.com"]
[Source "ChessBase"]
[SourceQuality "1"]
[TimeControl "5400+30"]

1. d4 Nf6 {[%emt 0:01:00]} 2. Nf3 {[%emt 0:01:30]} g6 {[%emt 0:00:30]} 3. g3 {[%emt 0:00:30]} Bg7 {[%emt 0:00:30]} 4. Bg2 {[%emt 0:00:30]} O-O {[%emt 0:00:30]} 5. O-O {[%emt 0:00:00]} d6 {[%emt 0:00:30]} 6. Nc3 {[%emt 0:00:00]} Nbd7 {[%emt 0:03:30]} 7. a4 {[%emt 0:00:30]} a5 {[%emt 0:01:30]} 8. b3 {[%emt 0:00:30]} Re8 {[%emt 0:01:30]} 9. e4 {[%emt 0:20:30]} e5 {[%emt 0:04:30]} 10. dxe5 {[%emt 0:01:30]} dxe5 {[%emt 0:00:30]} 11. Qe2 {[%emt 0:00:30]} c6 {[%emt 0:02:30]} 12. Rd1 {[%emt 0:08:30]} Bf8 {[%emt 0:03:30]} 13. Ne1 {[%emt 0:09:30]} Qc7 {[%emt 0:03:30]} 14. Qc4 {[%emt 0:04:30]} Nb6 {[%emt 0:02:30]} 15. Qd3 {[%emt 0:00:30]} Bg4 {[%emt 0:02:30]} 16. Nf3 {[%emt 0:00:30]} Rad8 {[%emt 0:19:30]} 17. Qe2 {[%emt 0:00:30]} Nbd7 {[%emt 0:04:30]} 18. h3 {[%emt 0:00:30]} Be6 {[%emt 0:00:30]} 19. Bb2 {[%emt 0:03:30]} Nc5 {[%emt 0:03:30]} 20. Rxd8 {[%emt 0:05:30]} Rxd8 {[%emt 0:00:30]} 21. Re1 {[%emt 0:02:30]} Nfd7 {[%emt 0:04:30]} 22. Ng5 {[%emt 0:03:30]} h6 {[%emt 0:09:30]} 23. Nf3 {[%emt 0:00:30]} Na6 {[%emt 0:06:30]} 24. Na2 {[%emt 0:04:30]} Nac5 {[%emt 0:00:30]} 25. Nc1 {[%emt 0:01:30]} Bg7 {[%emt 0:01:30]} 26. Rd1 {[%emt 0:03:30]} Kh7 {[%emt 0:03:30]} 27. Nd3 {[%emt 0:04:30]} Re8 {[%emt 0:01:10]} 28. Nh2 {[%emt 0:04:30]} Nxd3 {[%emt 0:01:11]} 29. Qxd3 {[%emt 0:00:30]} Qb6 {[%emt 0:01:46]} 30. Bc3 {[%emt 0:03:15]} Bf8 {[%emt 0:01:49]} 31. Nf3 {[%emt 0:00:41]} Bc5 {[%emt 0:03:11]} 32. Qe2 {[%emt 0:00:16]} Qc7 {[%emt 0:00:11]} 33. Nh2 {[%emt 0:01:21]} Be7 {[%emt 0:04:59]} 34. Ng4 {[%emt 0:04:03]} b5 {[%emt 0:01:23]} 35. Qd2 {[%emt 0:02:26]} Bg5 {[%emt 0:02:16]} 36. f4 {[%emt 0:01:24]} exf4 {[%emt 0:01:19]} 37. gxf4 {[%emt 0:00:14]} b4 {[%emt 0:01:52]} 38. Ba1 {[%emt 0:01:54]} Bxf4 {[%emt 0:02:11]} 39. Qxd7 {[%emt 0:01:31]} Be3+ {[%emt 0:00:42]} 40. Kh1 {[%emt 0:00:35]} Bxd7 {[%emt 0:00:34]} 41. Nf6+ {[%emt 0:00:07]} 1-0

[Event "Turkish Cup 2022"]
[Site "Sakarya"]
[Date "2022.03.28"]
[Round "6.7"]
[White "Gunduz, Umut Erdem"]
[Black "Yavuz, Efe Metehan"]
[Result "0-1"]
[ECO "B33"]
[WhiteElo "2258"]
[BlackElo "2054"]
[Annotator "NA"]
[PlyCount "100"]
[EventDate "2022.03.25"]
[EventType "swiss"]
[EventCountry "TUR"]
[SourceTitle "playchess.com"]
[Source "ChessBase"]
[SourceQuality "1"]
[TimeControl "5400+30"]

1. e4 {[%emt 0:09:00]} c5 {[%emt 0:01:00]} 2. Nf3 {[%emt 0:00:30]} Nc6 {[%emt 0:00:30]} 3. d4 {[%emt 0:00:30]} cxd4 {[%emt 0:00:30]} 4. Nxd4 {[%emt 0:00:30]} Nf6 {[%emt 0:00:30]} 5. Nc3 {[%emt 0:00:30]} e5 {[%emt 0:00:00]} 6. Ndb5 {[%emt 0:00:00]} d6 {[%emt 0:00:00]} 7. Bg5 {[%emt 0:00:00]} a6 {[%emt 0:00:00]} 8. Na3 {[%emt 0:00:00]} b5 {[%emt 0:00:00]} 9. Nd5 {[%emt 0:00:00]} Be7 {[%emt 0:00:00]} 10. Bxf6 {[%emt 0:00:00]} Bxf6 {[%emt 0:00:00]} 11. c4 {[%emt 0:00:00]} b4 {[%emt 0:00:00]} 12. Nc2 {[%emt 0:00:00]} a5 {[%emt 0:03:00]} 13. g3 {[%emt 0:00:00]} O-O {[%emt 0:02:30]} 14. h4 {[%emt 0:00:00]} Be6 {[%emt 0:03:30]} 15. Bg2 {[%emt 0:00:00]} a4 {[%emt 0:08:30]} 16. O-O {[%emt 0:07:30]} Be7 {[%emt 0:22:30]} 17. Qd3 {[%emt 0:01:30]} Rb8 {[%emt 0:03:30]} 18. b3 {[%emt 0:05:30]} Bxd5 {[%emt 0:05:30]} 19. exd5 {[%emt 0:02:30]} Na5 {[%emt 0:03:30]} 20. Rab1 {[%emt 0:20:30]} axb3 {[%emt 0:02:30]} 21. axb3 {[%emt 0:00:00]} Nb7 {[%emt 0:00:30]} 22. Ne3 {[%emt 0:06:00]} Nc5 {[%emt 0:00:30]} 23. Qc2 {[%emt 0:00:30]} g6 {[%emt 0:02:30]} 24. h5 {[%emt 0:03:30]} Kg7 {[%emt 0:16:30]} 25. f4 {[%emt 0:04:30]} exf4 {[%emt 0:01:30]} 26. gxf4 {[%emt 0:00:30]} Bf6 {[%emt 0:00:30]} 27. f5 {[%emt 0:05:30]} Re8 {[%emt 0:04:52]} 28. Rf3 {[%emt 0:03:30]} Rxe3 {[%emt 0:06:16]} 29. Rxe3 {[%emt 0:00:30]} Bd4 {[%emt 0:00:00]} 30. h6+ {[%emt 0:11:30]} Kxh6 {[%emt 0:01:02]} 31. Qd2 {[%emt 0:01:30]} Qh4 {[%emt 0:01:29]} 32. Kf1 {[%emt 0:10:58]} Qf4+ {[%emt 0:01:17]} 33. Ke2 {[%emt 0:00:02]} Qxe3+ {[%emt 0:00:32]} 34. Qxe3+ {[%emt 0:00:30]} Bxe3 {[%emt 0:00:30]} 35. Kxe3 {[%emt 0:00:00]} Ra8 {[%emt 0:01:03]} 36. Kf4 {[%emt 0:01:53]} Kg7 {[%emt 0:00:11]} 37. Be4 {[%emt 0:00:37]} g5+ {[%emt 0:02:00]} 38. Kf3 {[%emt 0:00:01]} Kf6 {[%emt 0:00:05]} 39. Rb2 {[%emt 0:02:04]} Ra3 {[%emt 0:00:39]} 40. Bc2 {[%emt 0:00:02]} Ra1 {[%emt 0:00:40]} 41. Bb1 {[%emt 0:00:30]} h5 {[%emt 0:00:30]} 42. Kg3 {[%emt 0:00:00]} Ra3 {[%emt 0:01:00]} 43. Bc2 {[%emt 0:00:00]} Ke5 {[%emt 0:00:02]} 44. Kf3 {[%emt 0:00:11]} Ra1 {[%emt 0:01:40]} 45. Bb1 {[%emt 0:00:09]} Kd4 {[%emt 0:01:01]} 46. Rd2+ {[%emt 0:01:02]} Kc3 {[%emt 0:00:39]} 47. Rd1 {[%emt 0:00:01]} Kb2 {[%emt 0:01:36]} 48. Bc2 {[%emt 0:00:11]} Rc1 {[%emt 0:00:23]} 49. Rxc1 {[%emt 0:00:30]} Kxc1 {[%emt 0:00:00]} 50. Be4 {[%emt 0:00:00]} f6 {[%emt 0:00:00]} 0-1

[Event "Turkish Cup 2022"]
[Site "Sakarya"]
[Date "2022.03.28"]
[Round "6.8"]
[White "Kilic, Eray"]
[Black "Isik, Alparslan"]
[Result "1-0"]
[ECO "B92"]
[WhiteElo "2088"]
[BlackElo "2328"]
[Annotator "NA"]
[PlyCount "41"]
[EventDate "2022.03.25"]
[EventType "swiss"]
[EventCountry "TUR"]
[SourceTitle "playchess.com"]
[Source "ChessBase"]
[SourceQuality "1"]
[TimeControl "5400+30"]

1. e4 c5 2. Nf3 d6 3. d4 {[%emt 0:01:00]} cxd4 {[%emt 0:02:00]} 4. Nxd4 {[%emt 0:00:30]} Nf6 {[%emt 0:00:30]} 5. Nc3 {[%emt 0:00:30]} g6 {[%emt 0:00:30]} 6. Be3 {[%emt 0:00:30]} a6 {[%emt 0:00:00]} 7. Be2 {[%emt 0:01:30]} Bg7 {[%emt 0:01:00]} 8. O-O {[%emt 0:00:30]} Nbd7 {[%emt 0:06:30]} 9. f4 {[%emt 0:04:30]} b5 {[%emt 0:02:30]} 10. Bf3 {[%emt 0:02:30]} Bb7 {[%emt 0:00:30]} 11. e5 {[%emt 0:12:30]} Bxf3 {[%emt 0:22:30]} 12. Qxf3 {[%emt 0:00:30]} dxe5 {[%emt 0:00:30]} 13. Nc6 {[%emt 0:00:00]} e4 {[%emt 0:00:30]} 14. Nxe4 {[%emt 0:00:00]} Qc7 {[%emt 0:04:30]} 15. Nxf6+ {[%emt 0:00:30]} Bxf6 {[%emt 0:04:30]} 16. Nxe7 {[%emt 0:00:30]} Nb6 {[%emt 0:07:30]} 17. Kh1 {[%emt 0:07:30]} Qxe7 {[%emt 0:01:30]} 18. Qc6+ {[%emt 0:00:30]} Nd7 {[%emt 0:05:30]} 19. Qxa8+ {[%emt 0:01:30]} Qd8 {[%emt 0:00:30]} 20. Qxd8+ {[%emt 0:00:30]} Bxd8 {[%emt 0:00:00]} 21. Rad1 {[%emt 0:00:00]} 1-0

[Event "Turkish Cup 2022"]
[Site "Sakarya"]
[Date "2022.03.28"]
[Round "6.10"]
[White "Caputcuoglu, Zeki Berke"]
[Black "Eren, Ataberk"]
[Result "0-1"]
[ECO "C47"]
[WhiteElo "2095"]
[BlackElo "2306"]
[Annotator "NA"]
[PlyCount "94"]
[EventDate "2022.03.25"]
[EventType "swiss"]
[EventCountry "TUR"]
[SourceTitle "playchess.com"]
[Source "ChessBase"]
[SourceQuality "1"]
[TimeControl "5400+30"]

1. e4 {[%emt 0:02:00]} e5 {[%emt 0:01:00]} 2. Nf3 {[%emt 0:02:30]} Nc6 {[%emt 0:00:30]} 3. Nc3 {[%emt 0:01:30]} Nf6 {[%emt 0:00:30]} 4. a3 {[%emt 0:01:30]} d5 {[%emt 0:02:30]} 5. Bb5 {[%emt 0:01:30]} Nxe4 {[%emt 0:02:30]} 6. Qe2 {[%emt 0:00:30]} Qd6 {[%emt 0:00:30]} 7. Nxe4 {[%emt 0:00:30]} dxe4 {[%emt 0:00:00]} 8. Qxe4 {[%emt 0:00:30]} Bd7 {[%emt 0:00:00]} 9. d4 {[%emt 0:02:30]} f5 {[%emt 0:03:30]} 10. Qe2 {[%emt 0:00:30]} e4 {[%emt 0:00:00]} 11. Bxc6 {[%emt 0:05:30]} Bxc6 {[%emt 0:01:00]} 12. Ne5 {[%emt 0:01:30]} Qe6 {[%emt 0:09:30]} 13. Bg5 {[%emt 0:08:30]} Bd6 {[%emt 0:05:30]} 14. Qc4 {[%emt 0:15:30]} Qd5 {[%emt 0:08:30]} 15. h4 {[%emt 0:05:30]} O-O {[%emt 0:02:30]} 16. Qxd5+ {[%emt 0:01:30]} Bxd5 {[%emt 0:00:30]} 17. Bf4 {[%emt 0:00:30]} Rfe8 {[%emt 0:12:30]} 18. O-O-O {[%emt 0:09:30]} Re6 {[%emt 0:09:30]} 19. Be3 {[%emt 0:16:30]} b5 {[%emt 0:01:30]} 20. Kb1 {[%emt 0:02:32]} a5 {[%emt 0:01:30]} 21. Bc1 {[%emt 0:01:26]} Rd8 {[%emt 0:07:30]} 22. Rhe1 {[%emt 0:05:28]} h6 {[%emt 0:02:30]} 23. Nc6 {[%emt 0:10:53]} Ra8 {[%emt 0:01:30]} 24. Ne5 {[%emt 0:00:20]} Rd8 {[%emt 0:07:30]} 25. g4 {[%emt 0:01:31]} fxg4 {[%emt 0:00:30]} 26. Nxg4 {[%emt 0:00:10]} Rf8 {[%emt 0:00:30]} 27. Rg1 {[%emt 0:00:43]} Kh7 {[%emt 0:00:30]} 28. Be3 {[%emt 0:00:41]} b4 {[%emt 0:01:11]} 29. axb4 {[%emt 0:00:59]} axb4 {[%emt 0:00:19]} 30. b3 {[%emt 0:00:56]} Be7 {[%emt 0:00:43]} 31. h5 {[%emt 0:00:55]} Rf5 {[%emt 0:03:16]} 32. Rh1 {[%emt 0:00:53]} Ra6 {[%emt 0:00:30]} 33. Kb2 {[%emt 0:00:53]} Bf7 {[%emt 0:01:08]} 34. Ne5 {[%emt 0:00:23]} Bxh5 {[%emt 0:00:10]} 35. Ra1 {[%emt 0:00:06]} Rxa1 {[%emt 0:00:37]} 36. Kxa1 {[%emt 0:01:08]} c5 {[%emt 0:02:05]} 37. Nc6 {[%emt 0:00:30]} Bf6 {[%emt 0:00:00]} 38. Kb1 {[%emt 0:00:00]} Be8 {[%emt 0:00:54]} 39. d5 {[%emt 0:00:14]} Rxd5 {[%emt 0:00:08]} 40. Na5 {[%emt 0:00:01]} Bh5 {[%emt 0:01:39]} 41. Nc4 {[%emt 0:00:34]} Bf3 {[%emt 0:00:16]} 42. Rg1 {[%emt 0:00:00]} h5 {[%emt 0:01:26]} 43. Nd2 {[%emt 0:00:33]} h4 {[%emt 0:00:00]} 44. Nxf3 {[%emt 0:00:30]} exf3 {[%emt 0:00:00]} 45. Kc1 {[%emt 0:00:12]} g5 {[%emt 0:00:03]} 46. Rg4 {[%emt 0:00:56]} Kg6 {[%emt 0:00:05]} 47. Rg1 {[%emt 0:00:28]} Kf5 {[%emt 0:00:06]} 0-1

[Event "Turkish Cup 2022"]
[Site "Sakarya"]
[Date "2022.03.28"]
[Round "6.12"]
[White "Ozcan, Ilker"]
[Black "Kilic, Efe Mert"]
[Result "1-0"]
[ECO "A18"]
[WhiteElo "2014"]
[BlackElo "2220"]
[Annotator "NA"]
[PlyCount "75"]
[EventDate "2022.03.25"]
[EventType "swiss"]
[EventCountry "TUR"]
[SourceTitle "playchess.com"]
[Source "ChessBase"]
[SourceQuality "1"]
[TimeControl "5400+30"]

1. c4 Nf6 2. Nc3 e6 3. e4 {[%emt 0:01:00]} d5 {[%emt 0:02:00]} 4. cxd5 {[%emt 0:00:00]} exd5 {[%emt 0:02:30]} 5. e5 {[%emt 0:00:00]} d4 {[%emt 0:09:30]} 6. exf6 {[%emt 0:00:30]} dxc3 {[%emt 0:00:30]} 7. Bb5+ {[%emt 0:00:00]} Nc6 {[%emt 0:07:30]} 8. Qe2+ {[%emt 0:03:00]} Be6 {[%emt 0:00:30]} 9. dxc3 {[%emt 0:00:00]} Qxf6 {[%emt 0:01:30]} 10. Nf3 {[%emt 0:00:00]} Bc5 {[%emt 0:03:30]} 11. Bg5 {[%emt 0:05:30]} Qg6 {[%emt 0:11:30]} 12. Bd3 {[%emt 0:16:30]} Qh5 {[%emt 0:01:30]} 13. h3 {[%emt 0:07:30]} O-O {[%emt 0:03:30]} 14. O-O-O {[%emt 0:02:30]} Be7 {[%emt 0:06:30]} 15. Qe3 {[%emt 0:07:30]} Rfe8 {[%emt 0:10:30]} 16. g4 {[%emt 0:03:30]} Bxg5 {[%emt 0:00:30]} 17. Nxg5 {[%emt 0:02:30]} Qh6 {[%emt 0:00:30]} 18. Bxh7+ {[%emt 0:02:30]} Kh8 {[%emt 0:00:30]} 19. Rhe1 {[%emt 0:00:30]} Re7 {[%emt 0:04:30]} 20. Bb1 {[%emt 0:05:30]} Bc4 {[%emt 0:13:47]} 21. Qd2 {[%emt 0:06:30]} Rxe1 {[%emt 0:04:59]} 22. Rxe1 {[%emt 0:00:00]} f6 {[%emt 0:00:30]} 23. Ne4 {[%emt 0:02:00]} Qxh3 {[%emt 0:00:29]} 24. Ng3 {[%emt 0:04:30]} Qxg4 {[%emt 0:02:49]} 25. Re4 {[%emt 0:01:30]} Qh3 {[%emt 0:04:05]} 26. Rxc4 {[%emt 0:00:30]} Rd8 {[%emt 0:01:39]} 27. Re4 {[%emt 0:01:30]} Kg8 {[%emt 0:04:42]} 28. Qe3 {[%emt 0:01:30]} Kf7 {[%emt 0:02:47]} 29. Bc2 {[%emt 0:01:30]} Qg2 {[%emt 0:00:41]} 30. b3 {[%emt 0:03:30]} Ne5 {[%emt 0:00:47]} 31. Rd4 {[%emt 0:00:30]} Rh8 {[%emt 0:00:31]} 32. Be4 {[%emt 0:01:30]} Qh3 {[%emt 0:00:55]} 33. Rd1 {[%emt 0:00:30]} Re8 {[%emt 0:00:41]} 34. f4 {[%emt 0:00:30]} Qh6 {[%emt 0:00:57]} 35. Nf5 {[%emt 0:00:30]} Qh2 {[%emt 0:00:06]} 36. fxe5 {[%emt 0:00:30]} Qxa2 {[%emt 0:00:00]} 37. Bd5+ {[%emt 0:00:30]} Kg6 {[%emt 0:00:17]} 38. Qg3+ {[%emt 0:00:30]} 1-0